bitfinex-derivatives/quotes_SOLF0:USTF0_20250919
["timestamp","ask_amount","ask_price","bid_price","bid_amount"]
[1758295297090,58.9616,237.33,237.24,116.72]
[1758295297290,58.9616,237.33,237.15,0.02]
[1758295297291,7.31,237.27,237.15,0.02]
[1758295297594,7.31,237.22,237.1,3.794]
[1758295297886,7.31,237.22,237.09,0.02]
[1758295298396,7.31,237.22,237.11,3.7937]
[1758295298886,3.7926,237.19,237.09,0.02]
[1758295299683,3.7926,237.19,237.1,3.7938]
[1758295299995,7.31,237.22,237.1,3.7938]
[1758295300495,7.31,237.22,237.11,3.7937]
[1758295301794,3.7924,237.2,237.11,3.7937]
[1758295303394,7.31,237.31,237.16,0.02]
[1758295303997,58.9713,237.29,237.16,0.02]
[1758295304188,7.31,237.28,237.16,0.02]
[1758295304693,7.31,237.19,237.07,0.02]
[1758295305092,58.996,237.19,237.0,276.62418089]
[1758295305294,3.7934,237.14,237.04,3.7949]
[1758295305495,7.31,237.17,237.04,3.7949]
[1758295305694,7.31,237.15,237.01,0.02]
[1758295305896,3.794,237.1,237.01,3.8153]
[1758295306103,7.31,237.15,237.01,3.8153]
[1758295306294,7.31,237.15,237.03,3.7951]
[1758295306496,7.31,237.15,237.04,0.02]
[1758295307699,7.31,237.15,237.01,116.06]
[1758295307896,59.0046,237.16,237.01,116.06]
[1758295308098,7.31,237.15,237.01,116.06]
[1758295308600,7.31,237.12,237.0,160.50418089]
[1758295309194,7.31,237.12,237.01,3.7954]
[1758295309596,3.794,237.1,237.01,3.7954]
[1758295311400,7.31,237.2,237.03,0.02]
[1758295312192,3.7928,237.18,237.03,0.02]
[1758295312800,3.793,237.16,237.06,3.7945]
[1758295313000,7.31,237.16,237.06,3.7945]
[1758295313300,3.7932,237.15,237.06,3.7945]
[1758295313704,7.31,237.16,237.08,3.7943]
[1758295314099,7.31,237.16,237.07,0.02]
[1758295314600,7.31,237.16,237.09,3.794]
[1758295316103,7.31,237.16,237.07,0.02]
[1758295316309,7.31,237.21,237.11,0.02]
[1758295316704,115.82,237.33,237.24,3.7916]
[1758295316705,3.7904,237.33,237.24,3.7916]
[1758295317006,7.31,237.34,237.23,0.02]
[1758295317206,7.31,237.34,237.26,3.7914]
[1758295317903,7.31,237.34,237.28,3.791]
[1758295318102,58.9329,237.45,237.28,3.791]
[1758295318411,3.7894,237.39,237.28,3.791]
[1758295318709,6.72,237.38,237.28,3.791]
[1758295320207,6.72,237.38,237.28,58.9731]
[1758295320397,6.72,237.43,237.31,58.9653]
[1758295320802,6.72,237.43,237.3,0.02]
[1758295321004,65.6589,237.42,237.23,59.004]
[1758295321210,6.72,237.41,237.27,0.02]
[1758295322709,6.72,237.35,237.23,3.7918]
[1758295323101,6.72,237.35,237.22,115.62]
[1758295323413,6.72,237.35,237.27,3.7911]
[1758295324507,6.72,237.35,237.26,0.02]
[1758295324706,6.72,237.35,237.24,3.7917]
[1758295324907,6.72,237.35,237.21,0.02]
[1758295325108,6.72,237.32,237.21,119.3321]
[1758295325718,3.7907,237.31,237.21,3.8121]
[1758295326907,6.72,237.32,237.21,3.8121]
[1758295327408,6.72,237.31,237.16,0.02]
[1758295327609,6.72,237.32,237.16,115.48]
[1758295328307,3.7911,237.28,237.17,3.7927]
[1758295328514,3.7911,237.28,237.12,59.0121]
[1758295328515,6.72,237.27,237.1,0.02]
[1758295329212,6.72,237.23,237.1,0.02]
[1758295330411,6.72,237.19,237.06,115.38]
[1758295332217,6.72,237.19,237.09,0.02]
[1758295332403,6.72,237.19,237.11,3.7937]
[1758295332805,6.72,237.19,237.09,0.02]
[1758295333410,6.72,237.19,237.1,3.794]
[1758295334110,6.72,237.19,237.09,0.02]
[1758295334913,3.7927,237.18,237.06,3.7946]
[1758295335114,6.72,237.19,237.04,0.02]
[1758295335514,58.9948,237.2,237.05,115.24]
[1758295335819,6.72,237.15,237.05,119.0348]
[1758295336117,6.72,237.15,237.05,115.24]
[1758295336312,6.72,237.15,237.07,3.7944]
[1758295336510,6.72,237.15,237.05,115.24]
[1758295336714,6.72,237.15,237.05,115.2]
[1758295336913,6.72,237.15,237.05,118.9947]
[1758295337317,6.72,237.15,237.05,3.7947]
[1758295337521,6.72,237.15,237.05,118.9947]
[1758295337918,6.72,237.15,237.07,3.7944]
[1758295338421,10.5132,237.15,237.07,3.7944]
[1758295338809,6.72,237.15,237.07,3.7944]
[1758295340218,6.72,237.15,237.09,3.7941]
[1758295340419,6.72,237.23,237.07,0.02]
[1758295340915,58.9991,237.18,237.04,3.51010864]
[1758295341115,6.72,237.15,237.02,0.02]
[1758295341311,59.0032,237.16,237.02,115.12]
[1758295341519,6.72,237.15,237.02,115.12]
[1758295342825,3.7937,237.12,237.04,3.7949]
[1758295343419,3.794,237.1,237.02,115.12]
[1758295343618,3.794,237.1,237.02,0.02]
[1758295344021,6.72,237.12,237.02,0.02]
[1758295344221,3.7944,237.08,237.01,115.04]
[1758295344527,6.72,237.09,237.01,115.04]
[1758295344923,6.72,237.09,236.99,318.66]
[1758295345125,6.72,237.09,237.01,115.02]
[1758295345924,6.72,237.09,236.99,322.4557]
[1758295346126,6.72,237.09,236.99,318.66]
[1758295346325,6.72,237.09,236.99,433.64]
[1758295346526,3.7943,237.08,236.99,437.4357]
[1758295346920,6.72,237.09,237.01,3.7954]
[1758295347429,6.72,237.09,236.99,433.64]
[1758295347630,6.72,237.09,236.99,437.4356]
[1758295347631,3.7945,237.07,236.99,437.4356]
[1758295348125,3.7945,237.07,236.99,433.64]
[1758295349419,10.5141,237.09,236.99,433.64]
[1758295349626,6.72,237.09,236.99,433.64]
[1758295350738,65.9146,237.08,236.94,0.04]
[1758295351036,6.89,237.08,236.96,114.9]
[1758295351239,10.6848,237.05,236.97,3.796]
[1758295351836,10.6848,237.05,236.95,3.7963]
[1758295352041,3.7954,237.01,236.94,0.04]
[1758295352246,6.89,237.02,236.94,0.04]
[1758295352549,6.89,237.02,236.83,63.78349429]
[1758295352550,59.0514,236.97,236.87,0.04]
[1758295352935,65.9381,236.98,236.87,0.04]
[1758295353141,6.89,236.98,236.87,0.04]
[1758295353740,6.89,236.98,236.91,3.7969]
[1758295354134,10.6859,236.98,236.87,3.8375]
[1758295354442,10.6859,236.98,236.87,0.04]
[1758295354642,6.89,236.98,236.87,0.04]
[1758295354942,6.89,236.98,236.83,0.04]
[1758295355135,59.0468,236.99,236.83,0.04]
[1758295355340,59.0478,236.98,236.84,114.8]
[1758295355736,6.89,236.97,236.84,114.8]
[1758295356639,6.89,236.97,236.87,0.04]
[1758295357145,6.89,236.97,236.9,3.7972]
[1758295357847,6.89,236.97,236.87,3.8375]
[1758295358145,6.89,236.97,236.86,114.76]
[1758295358340,59.0488,236.98,236.83,114.76]
[1758295358547,10.6868,236.93,236.84,3.798]
[1758295358744,6.89,236.93,236.83,114.76]
[1758295358942,6.89,236.98,236.84,59.1217]
[1758295359143,6.89,236.98,236.83,114.76]
[1758295359144,6.89,236.98,236.86,0.04]
[1758295359946,6.89,236.98,236.9,3.7971]
[1758295360148,6.89,237.06,236.88,59.1117]
[1758295360351,59.0288,237.06,236.88,59.1117]
[1758295360648,6.89,237.05,236.88,59.1117]
[1758295361441,3.7954,237.01,236.93,3.7966]
[1758295361644,6.89,237.01,236.88,0.04]
[1758295362447,6.89,237.01,236.89,59.0693]
[1758295363853,6.89,237.01,236.94,3.7964]
[1758295364550,6.89,237.01,236.92,3.7968]
[1758295365951,3.7956,237.0,236.92,3.7968]
[1758295366551,10.6861,236.97,236.91,114.64]
[1758295366750,6.89,236.97,236.91,114.64]
[1758295366953,6.89,236.97,236.85,0.04]
[1758295367348,6.89,236.97,236.88,3.7975]
[1758295367552,6.89,236.97,236.85,0.04]
[1758295368548,6.89,236.97,236.87,59.0752]
[1758295368755,6.89,236.97,236.88,59.1116]
[1758295368955,59.0282,237.06,236.88,59.1116]
[1758295369354,3.7957,236.99,236.88,0.04]
[1758295370154,3.796,236.98,236.89,3.7972]
[1758295370358,6.89,237.0,236.89,3.7972]
[1758295370661,6.89,236.95,236.87,3.7976]
[1758295371854,3.7966,236.94,236.85,3.798]
[1758295372353,6.89,236.95,236.83,114.52]
[1758295373558,10.6865,236.95,236.88,3.7975]
[1758295373755,6.89,236.95,236.83,114.52]
[1758295374455,59.0441,237.0,236.83,114.52]
[1758295374456,59.0529,236.96,236.83,114.52]
[1758295374662,6.89,236.95,236.83,0.04]
[1758295375056,10.6873,236.9,236.83,3.8382]
[1758295375258,6.89,236.9,236.83,0.04]
[1758295376153,6.89,236.9,236.82,3.7984]
[1758295376554,10.6873,236.9,236.8,114.38]
[1758295376759,6.89,236.9,236.8,114.38]
[1758295377062,3.7975,236.88,236.8,114.38]
[1758295377362,6.89,236.87,236.78,3.8391]
[1758295378159,6.89,236.87,236.8,3.7987]
[1758295378963,6.89,236.87,236.82,3.8484]
[1758295379362,3.7969,236.92,236.84,3.7981]
[1758295379866,7.32,236.93,236.84,3.7981]
[1758295380258,11.1167,236.93,236.84,3.7981]
[1758295380857,11.1167,236.93,236.83,0.05]
[1758295380858,7.32,236.93,236.83,0.05]
[1758295381364,7.32,236.93,236.85,3.7979]
[1758295381565,59.0389,237.02,236.85,0.05]
[1758295381566,7.32,237.02,236.85,0.05]
[1758295381871,7.32,236.99,236.85,0.05]
[1758295382361,3.7966,236.94,236.86,3.7977]
[1758295382671,7.32,236.93,236.85,0.05]
[1758295383063,11.1167,236.93,236.85,0.05]
[1758295383464,3.797,236.91,236.8,3.56010864]
[1758295383669,7.32,236.9,236.8,0.05]
[1758295383864,59.067,236.91,236.77,114.22]
[1758295384165,11.1184,236.83,236.72,3.51010864]
[1758295384363,11.1184,236.83,236.69,3.56010864]
[1758295384571,11.1184,236.83,236.69,0.05]
[1758295384768,3.7986,236.81,236.71,3.8001]
[1758295385161,59.079,236.86,236.69,0.05]
[1758295385362,59.0855,236.83,236.68,118.0006]
[1758295385563,7.32,236.82,236.68,118.0006]
[1758295385864,7.32,236.82,236.7,3.8003]
[1758295386873,59.0691,236.9,236.72,59.1116]
[1758295389576,7.32,236.89,236.77,0.05]
[1758295389775,7.32,236.89,236.8,0.05]
[1758295390165,7.32,236.89,236.81,59.0901]
[1758295390370,7.32,237.01,236.83,59.1345]
[1758295390572,7.32,237.02,236.84,173.1826]
[1758295390779,3.7956,237.0,236.88,3.7973]
[1758295390975,7.32,236.99,236.86,0.05]
[1758295391372,7.32,236.95,236.86,0.05]
[1758295391774,3.7971,236.91,236.79,0.05]
[1758295392077,7.32,236.9,236.79,0.05]
[1758295392576,59.0726,236.88,236.74,0.05]
[1758295392879,7.32,236.87,236.74,0.05]
[1758295394281,7.32,236.87,236.77,0.05]
[1758295395173,7.32,236.95,236.78,173.1173]
[1758295395378,7.32,236.95,236.79,0.05]
[1758295395767,59.0538,236.96,236.79,0.05]
[1758295395768,7.32,236.91,236.82,3.7983]
[1758295395968,7.32,236.91,236.79,0.05]
[1758295396170,7.32,236.91,236.84,3.7981]
[1758295396974,11.1163,236.96,236.86,3.7978]
[1758295397175,11.1163,236.96,236.83,59.0845]
[1758295397371,11.1163,236.96,236.82,0.05]
[1758295397770,11.1163,236.96,236.87,3.7976]
[1758295398175,11.1163,236.96,236.89,3.7973]
[1758295398176,7.32,236.96,236.89,3.7973]
[1758295398375,7.32,236.96,236.86,0.05]
[1758295398573,7.32,236.96,236.85,113.96]
[1758295398775,3.7964,236.95,236.86,3.7978]
[1758295399993,7.32,236.96,236.88,3.7974]
[1758295400479,7.32,236.96,236.9,3.7972]
[1758295400678,7.32,236.96,236.86,59.1265]
[1758295400679,7.32,236.96,236.86,0.05]
[1758295401088,7.32,237.04,236.88,0.05]
[1758295401485,3.7952,237.03,236.92,3.7968]
[1758295401677,3.7952,237.03,236.89,59.0699]
[1758295401988,3.7952,237.03,236.9,0.05]
[1758295402484,7.32,237.04,236.92,59.0626]
[1758295402881,7.32,237.04,236.92,3.7967]
[1758295403078,11.115,237.04,236.9,0.05]
[1758295403283,59.0278,237.06,236.9,0.05]
[1758295403485,66.3507,237.05,236.91,3.797]
[1758295404388,7.32,236.99,236.9,0.05]
[1758295404583,7.32,236.99,236.88,3.7975]
[1758295405192,11.1157,236.99,236.88,3.7975]
[1758295406189,3.7962,236.97,236.88,3.7975]
[1758295406891,7.32,236.99,236.9,3.7971]
[1758295407084,7.32,236.99,236.89,0.05]
[1758295407285,7.32,237.07,236.96,3.7962]
[1758295408987,7.32,237.07,236.98,3.7958]
[1758295409685,3.7946,237.06,236.98,3.7958]
[1758295410088,6.62,237.05,236.9,3.5285794]
[1758295410287,6.62,237.03,236.91,106.22]
[1758295410494,6.62,237.03,236.89,113.7]
[1758295410694,6.62,237.03,236.91,3.797]
[1758295411088,3.7956,237.0,236.85,62.6082794]
[1758295411389,6.62,236.99,236.86,113.68]
[1758295411694,3.7959,236.98,236.84,3.5285794]
[1758295411894,3.7959,236.98,236.87,113.68]
[1758295412398,3.7959,236.98,236.89,3.7973]
[1758295414500,6.62,236.99,236.86,117.4376]
[1758295414699,59.0367,237.03,236.86,3.7976]
[1758295414700,6.62,236.95,236.86,3.7976]
[1758295415303,3.7965,236.94,236.83,3.7982]
[1758295415499,6.62,236.95,236.83,117.3982]
[1758295415912,6.62,236.95,236.85,3.7979]
[1758295416704,6.62,236.95,236.87,3.7976]
[1758295416904,6.62,236.95,236.83,113.6]
[1758295417301,6.62,236.95,236.85,3.7979]
[1758295417909,6.62,236.95,236.87,3.7976]
[1758295418304,6.62,236.95,236.83,113.6]
[1758295418505,3.7962,236.96,236.8,59.0917]
[1758295418506,6.62,236.93,236.8,3.5285794]
[1758295418704,6.62,236.93,236.8,113.56]
[1758295419005,6.62,236.93,236.8,117.0885794]
[1758295419409,6.62,236.93,236.84,3.7981]
[1758295419603,6.62,236.93,236.8,176.1801794]
[1758295419808,6.62,237.01,236.84,59.0824]
[1758295420211,3.7958,236.99,236.9,3.7971]
[1758295420402,6.62,237.01,236.88,172.592]
[1758295420607,59.0393,237.02,236.87,113.52]
[1758295420916,6.62,237.01,236.87,113.52]
[1758295421110,59.0393,237.02,236.87,113.52]
[1758295421307,3.7963,236.96,236.83,7.3267794]
[1758295421509,6.62,236.95,236.84,113.52]
[1758295422411,6.62,236.95,236.85,3.7979]
[1758295422807,6.62,236.95,236.87,3.7976]
[1758295423010,172.5389,237.1,236.83,59.0831]
[1758295423011,6.62,236.99,236.86,59.0772]
[1758295423319,6.62,236.99,236.87,59.0748]
[1758295424314,6.62,236.99,236.93,3.7967]
[1758295424514,3.7953,237.02,236.93,3.7967]
[1758295425605,6.62,237.04,236.95,3.7963]
[1758295426510,6.62,237.04,236.97,3.796]
[1758295426808,6.62,237.04,236.94,113.42]
[1758295427015,6.62,237.04,235.69,676.04582155]
[1758295427016,6.62,237.05,236.87,3.5285794]
[1758295427213,59.0293,237.06,236.88,113.42]
[1758295428010,3.7956,237.0,236.92,3.7968]
[1758295428216,432.46,237.11,236.91,59.065]
[1758295428518,3.7945,237.07,236.98,3.7959]
[1758295428713,6.62,237.1,236.98,3.7959]
[1758295429314,6.62,237.08,236.94,3.7964]
[1758295429610,6.62,237.08,236.89,3.5285794]
[1758295429812,6.62,237.08,236.9,59.0673]
[1758295430010,3.7952,237.03,236.95,3.7962]
[1758295430213,6.62,237.08,236.95,3.7962]
[1758295430718,6.62,237.04,236.89,3.5285794]
[1758295431014,6.62,237.04,236.9,59.0677]
[1758295431313,6.62,237.04,236.95,3.7962]
[1758295431505,3.7952,237.03,236.92,113.34]
[1758295431710,6.62,237.04,236.88,3.5285794]
[1758295431908,6.62,237.04,236.89,113.34]
[1758295432110,10.4159,236.98,236.89,3.7973]
[1758295432317,6.62,236.98,236.86,3.5285794]
[1758295432513,6.62,236.98,236.84,116.8485794]
[1758295432708,6.62,236.98,236.84,7.3266794]
[1758295432709,3.7965,236.94,236.84,7.3266794]
[1758295432908,3.7965,236.94,236.84,120.6466794]
[1758295433412,3.7962,236.96,236.86,3.7978]
[1758295433817,6.62,236.98,236.84,172.4017]
[1758295434410,3.76915922,237.05,236.88,59.0724]
[1758295434616,6.62,237.04,236.89,59.07]
[1758295434910,6.62,237.04,236.88,59.0724]
[1758295435115,6.62,237.04,236.91,59.0652]
[1758295435323,6.62,237.04,236.91,113.28]
[1758295436815,6.62,237.04,236.96,3.7961]
[1758295438212,6.62,237.04,236.94,3.7965]
[1758295438409,6.62,237.04,236.92,0.03]
[1758295438713,6.62,237.04,236.98,3.7958]
[1758295439513,71.02146837,237.2,236.98,3.7958]
[1758295439514,7.14,237.25,236.99,0.42]
[1758295439718,7.14,237.25,237.08,59.0228]
[1758295439910,10.9316,237.25,237.14,3.7933]
[1758295440112,66.1027,237.33,237.15,0.03]
[1758295440415,7.14,237.38,237.17,0.03]
[1758295440613,12.65,237.44,237.22,0.03]
[1758295440812,7.14,237.46,237.25,58.98]
[1758295441017,7.14,237.46,237.27,0.03]
[1758295441215,7.14,237.46,237.29,0.03]
[1758295441512,7.14,237.53,237.32,0.03]
[1758295441709,7.14,237.53,237.34,0.03]
[1758295441911,7.14,237.53,237.36,0.03]
[1758295442219,7.14,237.51,237.36,113.19]
[1758295442918,7.14,237.52,237.36,113.16]
[1758295443118,7.14,237.52,237.36,113.19]
[1758295443518,7.14,237.58,237.37,0.03]
[1758295443717,7.14,237.58,237.4,0.03]
[1758295443917,7.14,237.58,237.41,113.42]
[1758295444222,7.1,237.58,237.44,3.76915922]
[1758295444522,7.1,237.58,237.42,3.79915922]
[1758295444911,7.1,237.58,237.43,117.30915922]
[1758295445111,7.1,237.58,237.42,0.03]
[1758295445315,7.1,237.58,237.41,33.82351478]
[1758295445316,7.1,237.58,237.45,0.07]
[1758295445524,7.1,237.58,237.46,106.9]
[1758295446015,7.1,237.58,237.47,113.54]
[1758295446220,7.1,237.58,237.41,37.592674]
[1758295446422,7.14,237.63,237.46,3.76915922]
[1758295446616,7.14,237.63,237.47,0.07]
[1758295446815,7.14,237.63,237.51,3.76915922]
[1758295447315,7.14,237.63,237.49,0.07]
[1758295447316,58.8896,237.62,237.49,0.07]
[1758295447514,7.14,237.63,237.5,50.70915922]
[1758295447715,66.0136,237.69,237.5,50.70915922]
[1758295447915,62.6644,237.66,237.51,113.8]
[1758295448123,66.0136,237.69,237.51,113.8]
[1758295448315,66.0136,237.69,237.49,0.07]
[1758295448316,58.8941,237.6,237.5,113.86]
[1758295448512,7.14,237.59,237.48,113.82]
[1758295448712,7.14,237.59,237.43,0.07]
[1758295448915,58.8995,237.58,237.44,92.18]
[1758295449120,62.6856,237.58,237.44,92.18]
[1758295449427,58.9056,237.56,237.45,113.8]
[1758295449622,7.14,237.59,237.45,113.8]
[1758295449919,7.14,237.59,237.43,34.09660657]
[1758295449920,7.14,237.64,237.48,0.07]
[1758295451616,58.8942,237.6,237.48,0.07]
[1758295451814,58.8865,237.63,237.49,114.9]
[1758295452019,7.14,237.64,237.5,0.07]
[1758295452320,58.8648,237.72,237.5,0.07]
[1758295452726,62.6565,237.69,237.5,0.07]
[1758295452922,7.14,237.73,237.52,0.07]
[1758295452923,66.0021,237.73,237.52,0.07]
[1758295453217,66.0021,237.73,237.53,114.83]
[1758295453614,58.8595,237.74,237.55,0.07]
[1758295453819,7.14,237.74,237.56,0.07]
[1758295454824,3.7841,237.73,237.56,3.8566]
[1758295455121,62.6465,237.73,237.56,0.07]
[1758295455318,3.7844,237.7,237.56,0.07]
[1758295455718,58.8624,237.73,237.56,0.07]
[1758295455719,62.6464,237.73,237.56,0.07]
[1758295456324,3.7845,237.7,237.56,0.07]
[1758295456523,58.8645,237.72,237.54,318.46]
[1758295456524,7.14,237.69,237.57,115.1]
[1758295456822,3.784,237.73,237.57,118.8865]
[1758295457020,3.784,237.73,237.58,0.07]
[1758295457224,66.0054,237.72,237.58,0.07]
[1758295457425,3.7843,237.71,237.58,0.07]
[1758295457621,7.14,237.72,237.59,114.96]
[1758295458016,7.14,237.72,237.58,0.07]
[1758295458220,7.14,237.72,237.59,115.08]
[1758295458424,0.7325005,237.76,237.6,0.07]
[1758295459226,0.7125005,237.76,237.6,0.07]
[1758295459922,58.8577,237.75,237.6,0.07]
[1758295460128,0.7125005,237.76,237.6,0.07]
[1758295460428,58.8572,237.75,237.6,0.07]
[1758295460626,7.14,237.71,237.61,114.8]
[1758295461024,3.7846,237.7,237.61,114.8]
[1758295461219,3.7846,237.7,237.62,114.78]
[1758295461424,7.14,237.71,237.62,114.78]
[1758295462227,7.14,237.71,237.63,114.68]
[1758295462929,7.14,237.71,237.64,114.68]
[1758295463328,7.14,237.71,237.58,0.07]
[1758295463529,66.7080005,237.76,237.58,0.07]
[1758295463729,7.14,237.73,237.58,0.07]
[1758295464129,3.7843,237.71,237.59,114.5]
[1758295464732,3.7847,237.69,237.6,114.46]
[1758295465028,7.14,237.73,237.6,114.46]
[1758295465231,10.924,237.73,237.6,114.46]
[1758295465734,10.924,237.73,237.61,0.07]
[1758295466730,10.924,237.73,237.62,114.28]
[1758295467033,7.14,237.73,237.62,114.28]
[1758295467427,7.14,237.73,237.62,3.7855]
[1758295467627,7.14,237.73,237.63,114.2]
[1758295467934,7.14,237.73,237.64,114.16]
[1758295468532,7.14,237.73,237.64,117.9453]
[1758295469235,7.14,237.73,237.64,114.16]
[1758295469431,7.14,237.73,237.61,3.8557]
[1758295469734,3.7841,237.72,237.65,114.04]
[1758295469923,3.7841,237.72,237.66,113.98]
[1758295470127,7.14,237.73,237.66,113.98]
[1758295470330,6.86,237.79,237.66,114.03]
[1758295470729,58.8497,237.78,237.67,113.92]
[1758295470928,3.7838,237.74,237.68,113.88]
[1758295471127,6.86,237.77,237.68,113.88]
[1758295471633,3.7837,237.75,237.68,113.88]
[1758295472225,6.86,237.77,237.68,126.35396154]
[1758295473138,3.7834,237.76,237.68,126.35396154]
[1758295473438,6.86,237.76,237.59,318.17]
[1758295473739,3.7841,237.72,237.64,113.74]
[1758295474441,6.86,237.76,237.64,113.79]
[1758295475037,3.7838,237.74,237.64,113.79]
[1758295475436,6.86,237.76,237.66,3.785]
[1758295475932,6.86,237.76,237.64,113.79]
[1758295475933,3.7839,237.73,237.67,115.9]
[1758295476340,6.86,237.76,237.67,115.9]
[1758295477343,3.7838,237.74,237.68,3.57125416]
[1758295477538,3.7838,237.74,237.67,115.9]
[1758295477739,6.86,237.76,237.68,3.57198203]
[1758295478041,6.86,237.76,237.69,3.57198203]
[1758295478335,6.86,237.76,237.7,3.57874666]
[1758295478538,10.6436,237.75,237.67,115.9]
[1758295478735,6.86,237.8,237.69,0.05]
[1758295478937,6.86,237.8,237.7,3.57949383]
[1758295479134,58.8335,237.85,237.72,0.05]
[1758295479135,6.86,237.85,237.72,0.05]
[1758295479439,6.86,237.85,237.73,3.57949383]
[1758295479643,6.86,237.85,237.74,3.57949383]
[1758295479839,6.86,237.85,237.75,111.55949383]
[1758295479840,10.6421,237.85,237.75,111.55949383]
[1758295480141,10.6421,237.85,237.76,3.57949383]
[1758295480342,10.6421,237.85,237.77,3.57949383]
[1758295480542,10.6421,237.85,237.78,3.57949383]
[1758295480740,3.7824,237.83,237.79,3.57949383]
[1758295480942,65.7029,237.81,237.71,115.96]
[1758295481336,6.86,237.75,237.66,0.05]
[1758295481536,6.86,237.75,237.67,115.92]
[1758295483347,6.86,237.87,237.68,0.05]
[1758295483549,6.86,237.87,237.69,58.8711]
[1758295483748,6.86,237.87,237.7,0.05]
[1758295484145,3.7822,237.84,237.74,3.7837]
[1758295484345,6.86,237.87,237.75,115.64]
[1758295485237,12.00286837,238.0,237.75,115.64]
[1758295485238,6.86,237.97,237.83,58.8865]
[1758295485450,6.86,237.97,237.85,58.8317]
[1758295485642,3.7791,238.04,237.9,3.7812]
[1758295485843,6.86,238.03,237.91,115.48]
[1758295486036,6.86,238.03,237.92,0.05]
[1758295486435,58.7912,238.02,237.87,0.05]
[1758295486638,58.7992,237.99,237.83,318.02]
[1758295486840,3.7803,237.96,237.84,115.48]
[1758295487242,3.7803,237.96,237.85,115.46]
[1758295488646,3.7803,237.96,237.83,318.02]
[1758295488647,65.6707,237.94,237.83,318.02]
[1758295488847,65.6707,237.94,237.85,115.26]
[1758295489050,65.6507,237.94,237.85,115.26]
[1758295489348,10.6406,237.94,237.85,115.26]
[1758295489548,58.8,237.98,237.85,115.26]
[1758295489944,3.7805,237.95,237.85,115.26]
[1758295490149,6.86,237.99,237.85,115.26]
[1758295490449,3.7807,237.94,237.86,115.08]
[1758295491249,6.86,237.96,237.86,115.08]
[1758295491853,3.7798,237.99,237.87,0.05]
[1758295492550,65.6519,238.02,237.87,0.05]
[1758295492752,3.7802,237.97,237.88,114.86]
[1758295492951,3.7802,237.97,237.87,0.05]
[1758295493144,3.7802,237.97,237.89,114.84]
[1758295493347,3.7797,238.0,237.89,114.84]